bitfinex/quotes_ETHUSD_20250123
["timestamp","ask_amount","ask_price","bid_price","bid_amount"]
[1737625904590,0.625752,3196.0,3195.3,3.12953]
[1737625904753,3.1292,3195.7,3195.1,3.2948948]
[1737625904954,3.44212,3195.7,3195.1,3.2948948]
[1737625905350,3.1292,3195.7,3195.1,0.1651748]
[1737625906581,3.12907,3195.9,3195.1,0.1651748]
[1737625906582,3.12907,3195.9,3195.2,3.12969]
[1737625907197,3.12911,3195.8,3195.2,3.12969]
[1737625907393,3.12911,3195.8,3195.3,3.12958]
[1737625907894,3.12887,3196.1,3195.7,0.7741]
[1737625908197,3.1288,3196.2,3195.7,0.7741]
[1737625908561,6.1863,3196.6,3195.7,0.7741]
[1737625908562,0.7963,3196.6,3195.7,0.7741]
[1737625908784,3.1288,3196.2,3195.7,0.7741]
[1737625909085,3.12887,3196.1,3195.7,0.7741]
[1737625909288,3.1288,3196.2,3195.7,0.7741]
[1737625909289,3.12896,3196.0,3195.7,0.7741]
[1737625909656,3.12912,3195.8,3195.6,1e-05]
[1737625909857,3.12914,3195.8,3195.6,1e-05]
[1737625910860,3.1292,3195.7,3195.6,1e-05]
[1737625911669,3.12914,3195.8,3195.6,1e-05]
[1737625912502,3.1292,3195.7,3195.6,1e-05]
[1737625912798,3.830534,3195.7,3195.6,1e-05]
[1737625915867,4.45393582,3195.7,3195.6,1e-05]
[1737625919478,4.45393582,3195.7,3193.2,3.92891]
[1737625919479,3.13076,3194.2,3193.2,3.92891]
[1737625919680,3.13087,3194.0,3193.8,0.23081018]
[1737625919991,3.13096,3193.9,3193.8,0.23081018]
[1737625920190,0.64089601,3194.6,3194.3,3.13053]
[1737625920491,0.63739008,3194.5,3193.8,0.23081018]
[1737625920695,3.1306,3194.3,3193.8,0.23081018]
[1737625920890,3.13056,3194.4,3193.8,3.36181018]
[1737625921209,3.13009,3194.8,3194.0,3.68082]
[1737625921390,3.13009,3194.8,3194.2,3.1306]
[1737625921802,3.13009,3194.8,3194.0,3.68083]
[1737625922026,0.62718533,3195.0,3194.0,3.13087]
[1737625922313,3.1296,3195.3,3194.5,0.55]
[1737625922609,0.701334,3195.7,3193.8,3.61331111]
[1737625922610,0.701334,3195.7,3194.6,0.7695]
[1737625922809,3.12977,3195.2,3194.6,0.7695]
[1737625923406,3.12981,3195.1,3194.6,0.7695]
[1737625924119,3.12961,3195.3,3194.7,0.55]
[1737625924282,3.12961,3195.3,3194.7,3.68014]
[1737625924480,3.88771,3195.9,3194.7,3.68014]
[1737625924481,3.12926,3195.7,3195.2,3.12967]
[1737625924687,0.701697,3195.7,3195.3,0.7695]
[1737625925038,0.7587,3196.5,3195.3,0.7695]
[1737625925381,1.19111911,3196.5,3195.3,0.7695]
[1737625925721,3.12931,3195.6,3195.3,0.7695]
[1737625926615,3.12931,3195.6,3195.4,0.13890659]
[1737625926813,3.1294,3195.5,3195.4,0.13890659]
[1737625927012,3.755271,3195.5,3195.4,0.13890659]
[1737625928485,3.12967,3195.3,3194.9,0.7931]
[1737625928895,0.8206,3196.0,3194.9,0.7931]
[1737625929201,3.13038,3194.5,3194.4,0.7931]
[1737625929407,3.12979,3195.1,3194.3,0.23160495]
[1737625929601,3.13035,3194.6,3194.4,0.13900779]
[1737625929804,3.13019,3194.7,3194.4,0.13900779]
[1737625930011,3.13,3194.9,3194.4,0.13900779]
[1737625930295,3.12968,3195.3,3194.7,0.7931]
[1737625931026,3.12981,3195.1,3194.7,0.7931]
[1737625931231,3.442881,3195.0,3194.7,0.7931]
[1737625931633,0.312981,3195.0,3194.7,0.7931]
[1737625931946,3.442901,3195.0,3194.7,0.7931]
[1737625932236,3.13008,3194.8,3194.7,0.7931]
[1737625935639,3.13001,3194.9,3194.7,0.7931]
[1737625936192,3.12982,3195.1,3194.7,0.7931]
[1737625936387,3.1291,3195.8,3194.7,0.7931]
[1737625936599,3.13008,3194.8,3194.7,0.7931]
[1737625937004,3.13045,3194.5,3194.0,0.8058]
[1737625937318,3.13059,3194.3,3194.0,0.8058]
[1737625937505,3.13059,3194.3,3194.1,0.55]
[1737625937709,3.13059,3194.3,3194.1,0.68887379]
[1737625937948,3.13059,3194.3,3194.1,0.13887379]
[1737625938116,3.13038,3194.5,3194.1,0.13887379]
[1737625938452,3.13049,3194.4,3194.1,0.13887379]
[1737625938610,3.13067,3194.2,3194.1,0.13887379]
[1737625938948,3.13054,3194.4,3194.2,0.13887379]
[1737625939155,3.13057,3194.3,3194.2,0.13887379]
[1737625940050,3.13057,3194.3,3194.0,0.8058]
[1737625940818,3.13057,3194.3,3193.0,0.5]
[1737625940819,3.13087,3194.0,3193.7,0.7716]
[1737625941053,3.13106,3193.8,3193.7,0.7716]
[1737625941255,3.13106,3193.8,3193.7,0.99389367]
[1737625942379,3.13106,3193.8,3193.4,0.775]
[1737625942380,3.13124,3193.7,3193.4,0.775]
[1737625942540,3.13106,3193.8,3193.4,0.775]
[1737625942866,3.131,3193.9,3193.4,0.775]
[1737625943271,3.13089,3194.0,3193.4,0.775]
[1737625943636,3.13098,3193.9,3193.5,0.55]
[1737625943853,3.13107,3193.8,3193.5,0.55]
[1737625944370,3.13107,3193.8,3193.6,0.13883192]
[1737625944522,3.13116,3193.7,3193.6,0.13883192]
[1737625944728,3.757383,3193.7,3193.6,0.13883192]
[1737625945723,3.13116,3193.7,3193.2,0.7898]
[1737625946337,3.13122,3193.7,3193.2,0.7898]
[1737625946756,6.26204,3193.9,3193.2,3.92142]
[1737625946963,3.13084,3194.1,3193.5,3.13128]
[1737625947160,3.13084,3194.1,3193.6,0.8298]
[1737625947469,3.13057,3194.4,3193.8,0.8298]
[1737625947901,3.13061,3194.3,3193.8,0.8298]
[1737625948105,3.13029,3194.6,3193.8,0.8298]
[1737625948312,3.13029,3194.6,3193.9,3.13092]
[1737625948515,3.13048,3194.4,3193.9,3.13092]
[1737625948660,3.13041,3194.5,3193.9,3.26962596]
[1737625948860,3.13009,3194.8,3194.2,3.13066]
[1737625949107,3.1298,3195.1,3194.4,3.1304]
[1737625949271,3.1298,3195.1,3193.9,0.13870596]
[1737625949272,3.13015,3194.8,3194.5,0.7631]
[1737625949659,3.13013,3194.8,3194.5,0.7631]
[1737625950085,3.13017,3194.8,3194.5,0.7631]
[1737625950291,0.61735044,3195.6,3194.5,0.7631]
[1737625950509,3.12968,3195.3,3194.6,0.8193]
[1737625950796,3.12996,3195.0,3194.6,0.8193]
[1737625951007,0.312968,3195.2,3194.3,0.8145]
[1737625951158,3.13047,3194.4,3194.3,0.8145]
[1737625951583,3.13029,3194.6,3194.3,0.8145]
[1737625951800,3.13011,3194.8,3194.3,0.8145]
[1737625952097,3.13029,3194.6,3194.3,0.8145]
[1737625953902,6.25918,3195.3,3194.3,0.8145]
[1737625954213,3.12985,3195.1,3194.5,3.13035]
[1737625954580,3.12989,3195.0,3194.4,3.13042]
[1737625956307,0.827,3195.8,3194.5,0.755]
[1737625956507,3.1296,3195.3,3194.8,3.13006]
[1737625956666,3.12919,3195.8,3195.1,3.12972]
[1737625956874,3.1293,3195.6,3195.0,3.12982]
[1737625957208,0.62746939,3196.3,3195.6,3.12922]
[1737625957405,3.12855,3196.4,3195.8,3.12904]
[1737625957609,0.7629,3197.1,3195.7,0.8075]
[1737625957610,3.89081,3197.1,3195.7,0.8075]
[1737625957786,3.1294,3195.5,3195.3,0.8075]
[1737625958308,3.12921,3195.7,3195.3,0.8075]
[1737625958509,3.12909,3195.9,3195.3,0.8075]
[1737625958670,3.12911,3195.8,3195.3,0.8075]
[1737625958994,3.12892,3196.0,3195.3,3.93709]
[1737625959204,3.12885,3196.1,3195.4,3.12943]
[1737625959417,3.12863,3196.3,3195.5,0.805]
[1737625959730,3.1285,3196.5,3195.8,3.12909]
[1737625960018,3.12858,3196.4,3195.9,0.805]
[1737625960422,3.1285,3196.5,3195.9,0.805]
[1737625960622,3.12848,3196.5,3195.9,0.805]
[1737625960827,3.12848,3196.5,3195.9,3.93397]
[1737625961340,0.625673,3196.5,3195.9,0.805]
[1737625961522,3.12894,3196.0,3195.6,0.8106]
[1737625961820,3.12899,3196.0,3195.6,0.8106]
[1737625962029,3.1291,3195.8,3195.6,0.8106]
[1737625963016,3.12892,3196.0,3195.6,0.8106]
[1737625963217,3.12874,3196.2,3195.6,0.8106]
[1737625963401,3.12887,3196.1,3195.6,0.8106]
[1737625964335,3.12891,3196.0,3195.6,0.8106]
[1737625964628,3.12947,3195.5,3195.0,0.7623]
[1737625964928,3.12893,3196.0,3195.3,3.12951]
[1737625965430,6.25793,3196.0,3195.3,3.12951]
[1737625965611,3.12884,3196.1,3195.2,3.12969]
[1737625965919,3.12884,3196.1,3195.5,0.7773]
[1737625966139,3.12884,3196.1,3195.5,3.90666]
[1737625966949,3.12891,3196.0,3195.5,3.90666]
[1737625967274,3.12866,3196.3,3195.5,3.90662]
[1737625967470,3.12884,3196.1,3195.5,3.90662]
[1737625967645,3.12829,3196.7,3195.2,0.7956]
[1737625967846,3.12842,3196.5,3196.0,0.7956]
[1737625968164,3.1287,3196.3,3196.0,0.7956]
[1737625969647,3.12873,3196.2,3196.0,0.7956]
[1737625969851,3.12881,3196.1,3195.3,3.8031]
[1737625970070,3.12902,3195.9,3195.3,6.93267]
[1737625970663,3.12902,3195.9,3195.4,3.12948]
[1737625970861,6.25624,3196.8,3195.7,3.12912]
[1737625971073,3.12871,3196.2,3195.8,0.7943]
[1737625971772,3.12855,3196.4,3195.8,0.7943]
[1737625971973,3.1289,3196.1,3195.8,0.7943]
[1737625973094,3.1289,3196.1,3195.5,3.88824]
[1737625973467,3.12926,3195.7,3195.5,0.7589]
[1737625973682,3.1294,3195.5,3195.1,0.8229]
[1737625973988,3.12926,3195.7,3195.1,0.8229]
[1737625974352,3.12905,3195.9,3195.1,0.8229]
[1737625974353,6.25813,3195.9,3195.1,0.8229]
[1737625974549,3.12911,3195.8,3195.2,3.12968]
[1737625974752,1.111755,3196.3,3195.2,3.12968]
[1737625974753,3.12897,3196.0,3195.2,3.12968]
[1737625975004,3.12882,3196.1,3195.4,3.12942]
[1737625975183,3.12882,3196.1,3195.5,3.88703]
[1737625975356,3.12892,3196.0,3195.5,0.7577]
[1737625976069,3.12882,3196.1,3195.5,0.7577]
[1737625976268,3.12893,3196.0,3195.5,0.7577]
[1737625977592,3.1286,3196.4,3195.7,3.12912]
[1737625977754,3.12843,3196.5,3195.8,3.12909]
[1737625977955,3.12843,3196.5,3195.7,0.8084]
[1737625977956,3.12861,3196.4,3195.7,3.93758]
[1737625978291,3.12887,3196.1,3195.7,0.8084]
[1737625978657,3.12903,3195.9,3195.7,0.8084]
[1737625979390,3.12903,3195.9,3195.4,3.91529]
[1737625979578,3.12887,3196.1,3195.4,3.91529]
[1737625979896,3.12893,3196.0,3195.4,3.91529]
[1737625980390,3.12887,3196.1,3195.4,3.91521]
[1737625980595,0.8008,3196.3,3195.4,3.91521]
[1737625980755,3.12893,3196.0,3195.4,3.91521]
[1737625980958,3.12893,3196.0,3195.5,0.13791191]
[1737625981483,3.12883,3196.1,3195.5,3.26725191]
[1737625982195,3.12883,3196.1,3195.5,3.12934]
[1737625982522,3.76469002,3196.8,3196.2,3.1287]
[1737625982793,3.12764,3197.3,3196.3,0.782]
[1737625982794,3.12831,3196.7,3196.3,0.782]
[1737625982961,3.12832,3196.6,3196.3,0.782]
[1737625983158,3.12832,3196.6,3195.8,3.12906]
[1737625983159,3.12842,3196.5,3195.9,3.9384]
[1737625983469,3.12859,3196.4,3195.9,0.8094]
[1737625983678,3.12863,3196.3,3195.9,0.8094]
[1737625983872,3.12861,3196.3,3195.6,1.03021079]
[1737625984197,3.12909,3195.9,3195.6,0.22081079]
[1737625984779,3.1292,3195.7,3195.1,3.12978]
[1737625985266,3.1292,3195.7,3195.1,3.12972]
[1737625985486,3.1292,3195.7,3195.2,0.7729]
[1737625985691,3.12905,3195.9,3195.2,3.90251]
[1737625985890,3.12905,3195.9,3195.3,3.12959]
[1737625986089,3.12905,3195.9,3195.3,0.13823918]
[1737625986292,3.12905,3195.9,3195.4,3.12948]
[1737625986911,3.12892,3196.0,3195.4,3.12948]
[1737625987600,3.12892,3196.0,3195.5,0.13823918]
[1737625987799,3.12912,3195.8,3195.5,0.13823918]
[1737625987988,3.12901,3195.9,3195.5,0.13823918]
[1737625988909,3.12921,3195.7,3195.6,0.13823918]
[1737625990007,3.12921,3195.7,3195.2,0.7729]
[1737625990202,3.12938,3195.6,3195.2,0.7729]
[1737625990407,3.12955,3195.4,3194.9,3.89602]
[1737625990916,3.12938,3195.6,3194.9,3.89601]
[1737625991076,3.12938,3195.6,3195.0,3.12987]
[1737625991692,3.12938,3195.6,3195.1,0.13835551]
[1737625992182,0.703963,3195.6,3195.1,0.13835551]
[1737625992380,3.12969,3195.2,3195.1,0.13835551]
[1737625992989,3.13026,3194.7,3194.2,0.7661]
[1737625993190,3.13057,3194.3,3194.2,0.7661]
[1737625993396,3.13057,3194.3,3193.7,3.89726]
[1737625993885,3.13049,3194.4,3193.8,3.13101]
[1737625994285,3.13049,3194.4,3193.8,3.49005094]
[1737625994510,3.13047,3194.5,3193.9,3.13093]
[1737625994724,0.7986,3195.0,3194.2,0.7559]
[1737625994985,3.12971,3195.2,3194.6,3.13022]
[1737625995584,3.12941,3195.5,3194.4,0.8236]
[1737625995788,3.12941,3195.5,3195.0,0.8015]
[1737625997222,3.12955,3195.4,3195.0,0.8015]
[1737625997921,1.134359,3196.4,3195.4,3.12943]
[1737625998125,1.134359,3196.4,3195.0,0.8015]
[1737625998126,0.62061172,3196.3,3195.0,3.93136]
[1737625998327,3.12924,3195.7,3195.1,3.12979]
[1737625998829,3.12924,3195.7,3195.2,0.13789455]
[1737625999030,0.7993,3195.7,3195.2,0.13789455]
[1737625999228,3.92889,3195.3,3195.2,0.13789455]
[1737625999548,6.12969,3195.2,3195.1,0.46770411]
[1737626000628,3.12969,3195.2,3195.1,0.46770411]
[1737626000853,3.12891,3196.0,3195.3,0.7742]
[1737626001015,0.771,3196.1,3195.3,0.7742]
[1737626001016,3.1293,3195.6,3195.3,0.7742]
[1737626001350,3.12941,3195.5,3195.1,0.46770411]
[1737626001518,3.1293,3195.6,3195.0,0.7967]
[1737626001718,3.12941,3195.5,3195.0,0.7967]
[1737626002250,3.12922,3195.7,3195.0,3.92652]
[1737626002453,3.12937,3195.6,3195.0,3.92652]
[1737626002814,0.771,3196.1,3195.0,0.7967]
[1737626003050,3.12951,3195.4,3195.1,0.46770411]
[1737626003248,3.12961,3195.3,3195.1,0.46770411]
[1737626003547,3.12951,3195.4,3195.1,0.46770411]
[1737626003753,3.12961,3195.3,3195.1,0.46770411]
[1737626004159,3.12969,3195.2,3195.1,0.46770411]
[1737626004844,3.12986,3195.1,3194.7,0.7967]
[1737626005045,0.625912,3195.3,3194.7,0.7967]
[1737626005245,3.13005,3194.9,3194.7,0.7967]
[1737626005550,3.13008,3194.8,3194.4,1.26440411]
[1737626006767,3.13038,3194.5,3194.4,0.46770411]
[1737626007331,3.13027,3194.7,3194.3,0.46770411]
[1737626007515,3.12982,3195.1,3194.4,0.7831]
[1737626007858,3.12993,3195.0,3194.5,3.13037]
[1737626008064,3.12977,3195.2,3194.5,3.13037]
[1737626008467,3.12963,3195.3,3194.7,3.13016]
[1737626008832,0.7823,3195.7,3194.4,0.7831]
[1737626009033,3.1293,3195.6,3195.1,0.7717]
[1737626009239,3.12945,3195.5,3195.1,0.7717]
[1737626010874,3.12927,3195.7,3195.1,0.7717]
[1737626011177,3.12936,3195.6,3195.1,0.7717]
[1737626011375,3.12927,3195.7,3195.1,0.7717]
[1737626011575,3.12927,3195.7,3195.1,3.90148]
[1737626011876,3.12927,3195.7,3195.2,0.13791797]
[1737626012677,3.12927,3195.7,3195.2,3.26759797]
[1737626012970,3.12927,3195.7,3195.3,0.13791797]
[1737626013147,3.12905,3195.9,3195.3,3.26742797]
[1737626013347,3.12912,3195.8,3195.3,3.26742797]
[1737626013671,3.12905,3195.9,3195.3,3.26742797]
[1737626013974,3.12905,3195.9,3195.3,0.13791797]
[1737626014347,3.12922,3195.7,3195.3,0.13791797]
[1737626014673,3.12933,3195.6,3195.4,0.35807287]
[1737626014835,3.1294,3195.5,3195.4,0.35807287]
[1737626015237,3.755273,3195.5,3195.4,0.35807287]
[1737626016050,0.625873,3195.5,3194.8,1.24750411]
[1737626016266,3.12998,3194.9,3194.8,0.46770411]
[1737626016864,3.12998,3194.9,3194.6,0.46770411]
[1737626017178,3.12994,3195.0,3194.6,0.46770411]
[1737626017474,3.12994,3195.0,3194.7,0.13763729]
[1737626017683,3.12998,3194.9,3194.7,0.13763729]
[1737626017971,3.13008,3194.8,3194.7,0.13763729]
[1737626018587,3.12991,3195.0,3194.7,0.13763729]
[1737626018955,3.12984,3195.1,3194.7,0.13763729]
[1737626019477,0.625944,3195.1,3194.7,0.13763729]
[1737626019782,3.13008,3194.8,3194.7,0.13763729]
[1737626020303,3.13054,3194.4,3194.0,0.22026324]
[1737626020579,3.13059,3194.3,3194.0,0.22026324]
[1737626020785,3.13054,3194.4,3194.0,0.22026324]
[1737626021377,3.13054,3194.4,3193.9,3.91564]
[1737626021581,3.13054,3194.4,3193.9,0.7847]
[1737626021971,3.13041,3194.5,3193.9,3.91563]
[1737626022173,3.13053,3194.4,3193.9,0.7847]
[1737626022355,3.13066,3194.3,3193.9,0.7847]
[1737626022560,3.13053,3194.4,3193.9,0.7847]
[1737626022956,6.26109,3194.4,3193.9,0.7847]
[1737626023176,3.13053,3194.4,3193.9,0.7847]
[1737626024089,6.2611,3194.4,3193.9,0.7847]
[1737626024467,3.13064,3194.3,3193.9,0.7847]
[1737626024667,0.62650058,3194.8,3193.9,0.7847]
[1737626024668,3.13044,3194.5,3193.9,0.7847]
[1737626024863,3.13047,3194.4,3193.9,3.91565]
[1737626025559,3.13047,3194.4,3193.9,0.7847]
[1737626026587,3.13011,3194.8,3194.2,3.1306]
[1737626026913,3.1299,3195.0,3194.3,0.8158]
[1737626027082,3.1299,3195.0,3194.4,3.13045]
[1737626027282,3.12999,3194.9,3194.4,3.13045]
[1737626027813,3.1299,3195.0,3194.4,3.13045]
[1737626028320,6.25987,3195.0,3194.4,3.13045]
[1737626028682,6.25987,3195.0,3194.3,0.8158]
[1737626028683,3.1299,3195.0,3194.3,0.8158]
[1737626028910,3.13014,3194.8,3194.3,0.8158]
[1737626029361,3.13014,3194.8,3194.4,0.13753354]
[1737626029566,3.1299,3195.0,3194.4,0.13753354]
[1737626029810,3.1297,3195.2,3194.5,3.13037]
[1737626030112,3.1297,3195.2,3194.4,0.13753354]
[1737626030113,3.1297,3195.2,3194.6,3.13019]
[1737626030409,3.12953,3195.4,3194.8,3.13006]
[1737626030608,3.12941,3195.5,3195.0,3.12988]
[1737626031034,3.12921,3195.7,3195.2,3.12968]
[1737626031230,3.1294,3195.5,3195.1,0.7777]
[1737626031584,3.12921,3195.7,3195.1,0.7777]
[1737626031842,0.62490017,3196.0,3195.1,0.7777]
[1737626031843,3.12931,3195.6,3195.1,0.7777]
[1737626031999,0.62490017,3196.0,3195.1,3.90741]
[1737626032326,3.12929,3195.7,3195.1,3.90741]
[1737626032629,3.1293,3195.6,3195.1,3.90741]
[1737626032978,3.12914,3195.8,3195.1,3.90741]
[1737626033317,3.12924,3195.7,3195.2,3.12966]
[1737626034324,3.12924,3195.7,3195.3,0.13753321]
[1737626035848,3.12905,3195.9,3195.2,0.46746398]
[1737626036053,3.12899,3196.0,3195.3,3.12952]
[1737626036249,3.12906,3195.9,3195.3,3.12952]
[1737626036555,3.12861,3196.3,3195.4,0.807]
[1737626036709,3.12926,3195.7,3195.4,0.807]
[1737626038440,3.1294,3195.5,3195.3,0.46746398]
[1737626038642,3.12965,3195.3,3195.1,0.7756]
[1737626039337,3.12969,3195.2,3194.6,1.311]
[1737626039547,3.12969,3195.2,3194.6,4.44125]
[1737626040258,3.12969,3195.2,3194.7,0.13748949]
[1737626040423,0.625934,3195.2,3194.7,0.13748949]
[1737626040754,3.12989,3195.0,3194.7,0.13748949]
[1737626040958,3.13001,3194.9,3194.7,0.13748949]
[1737626041155,3.12989,3195.0,3194.7,0.13748949]
[1737626041361,3.12943,3195.5,3194.7,0.13748949]
[1737626041515,3.13003,3194.9,3194.7,0.13748949]
[1737626041997,3.13008,3194.8,3194.3,4.1682685]
[1737626042579,3.13031,3194.6,3194.3,1.0377085]
[1737626042972,3.13031,3194.6,3194.4,0.13749108]
[1737626044290,6.26026,3194.8,3194.4,0.13749108]
[1737626044485,3.1302,3194.7,3194.4,0.13749108]
[1737626044696,3.1302,3194.7,3194.5,0.13749108]
[1737626045404,0.61629701,3195.0,3194.5,0.13749108]
[1737626045577,3.56009835,3196.3,3194.5,0.13749108]
[1737626045578,3.12962,3195.3,3194.5,0.13749108]
[1737626045775,3.518082,3195.3,3194.5,0.13749108]
[1737626045977,3.12969,3195.2,3194.6,3.1302]
[1737626046179,3.12969,3195.2,3194.6,3.26769108]
[1737626046862,3.12995,3195.0,3194.6,0.13749108]
[1737626047062,3.12995,3195.0,3194.7,0.13749108]
[1737626047600,3.13004,3194.9,3194.7,0.13749108]
[1737626047964,3.12984,3195.1,3194.7,0.13749108]
[1737626048164,3.1299,3195.0,3194.7,0.13749108]
[1737626048467,6.25987,3195.0,3194.5,0.68745642]
[1737626048828,3.1299,3195.0,3194.5,0.68745642]
[1737626049023,0.625964,3195.0,3194.5,0.68745642]
[1737626049165,3.13024,3194.7,3194.5,0.68745642]
[1737626049486,3.13028,3194.6,3194.5,0.68745642]
[1737626049678,3.13028,3194.6,3194.5,0.46744792]
[1737626050203,3.13008,3194.8,3194.2,3.81812642]
[1737626050379,3.13018,3194.7,3194.2,3.81812642]
[1737626050760,3.13008,3194.8,3194.2,3.81812642]
[1737626050973,3.13008,3194.8,3194.3,0.35753936]
[1737626051195,3.13018,3194.7,3194.3,0.35753936]
[1737626052090,3.13008,3194.8,3194.4,0.35753936]
[1737626052600,3.13018,3194.7,3194.4,0.35753936]
[1737626053165,0.8121,3195.2,3194.4,0.35753936]
[1737626053364,3.13019,3194.7,3194.4,0.35753936]
[1737626053589,3.12999,3194.9,3194.5,0.13753086]
[1737626053776,3.12999,3194.9,3194.6,0.8201]
[1737626054803,3.13018,3194.7,3194.3,1.29874792]
[1737626055599,0.8121,3195.2,3194.3,1.29874792]
[1737626055896,3.13023,3194.7,3194.3,1.29874792]
[1737626056401,3.13033,3194.6,3194.4,0.13765956]
[1737626057368,3.13015,3194.8,3194.4,0.13765956]
[1737626057894,6.26027,3194.8,3194.4,0.13765956]
[1737626058109,3.75342909,3195.0,3194.5,0.13765956]
[1737626058418,0.8121,3195.2,3194.6,0.8106]
[1737626058419,3.94181,3195.2,3194.6,0.8106]
[1737626058620,3.12958,3195.4,3194.8,3.13008]
[1737626058826,3.12937,3195.6,3195.0,3.12987]
[1737626058970,6.87761527,3195.6,3195.0,3.12987]
[1737626059169,3.12941,3195.5,3195.0,3.12987]
[1737626059688,3.1295,3195.4,3194.9,3.26763956]
[1737626059866,3.12946,3195.5,3194.9,3.26763956]
[1737626060705,3.12946,3195.5,3195.0,0.13765956]
[1737626061977,3.12953,3195.4,3195.1,0.13765956]
[1737626062489,3.12936,3195.6,3195.2,0.7672]
[1737626063236,3.12906,3195.9,3195.3,3.12958]
[1737626063440,6.2577,3196.1,3195.4,3.12949]
[1737626063733,3.75249695,3196.1,3195.4,3.26716489]
[1737626063943,3.12902,3195.9,3195.4,3.26716489]
[1737626064829,3.12932,3195.6,3195.4,0.13767489]
[1737626065131,3.1294,3195.5,3195.4,0.13767489]
[1737626065481,3.1294,3195.5,3195.3,0.46784725]
[1737626065684,3.12949,3195.4,3195.3,0.46784725]
[1737626066113,3.92309,3195.4,3195.3,0.46784725]
[1737626067322,3.13018,3194.7,3194.6,0.46784725]
[1737626068531,3.13018,3194.7,3194.6,0.60558726]
[1737626068734,3.90248,3194.7,3194.6,0.60558726]
[1737626068885,4.918736,3194.7,3194.6,0.60558726]
[1737626069286,4.918736,3194.7,3194.6,0.13774001]
[1737626070491,3.13054,3194.4,3193.9,0.77]
[1737626070838,3.13058,3194.3,3193.9,0.77]
[1737626071041,3.13074,3194.2,3193.9,0.77]
[1737626071208,3.13069,3194.2,3193.9,0.77]
[1737626071810,3.13096,3193.9,3193.8,0.46784725]
[1737626073100,3.13113,3193.8,3193.5,0.22030909]
[1737626073305,3.1311,3193.8,3193.3,0.22030909]
[1737626073500,3.13096,3193.9,3193.3,0.22030909]
[1737626073824,3.93485,3193.5,3193.3,0.22030909]
[1737626074133,3.13145,3193.4,3193.3,0.22030909]
[1737626074825,3.13155,3193.3,3193.2,0.46784725]
[1737626075142,3.13171,3193.2,3192.8,0.68815634]
[1737626075435,0.70663,3193.4,3192.8,0.68815634]
[1737626075603,3.9348,3193.5,3192.8,0.68815634]
[1737626076045,3.13162,3193.3,3192.9,0.7753]
[1737626076247,3.13168,3193.2,3192.9,0.7753]
[1737626076547,3.13168,3193.2,3192.8,0.46784725]
[1737626076860,3.13194,3192.9,3192.8,0.46784725]
[1737626077029,3.13213,3192.8,3192.1,3.13272]
[1737626077208,3.1322,3192.7,3192.2,0.55]
[1737626077609,3.13194,3192.9,3192.2,3.68262]
[1737626077805,3.13194,3192.9,3192.3,3.2697978]
[1737626078052,3.13179,3193.1,3192.5,0.55]
[1737626078260,3.13179,3193.1,3192.4,0.7758]
[1737626078261,3.13159,3193.3,3192.6,3.13216]
[1737626078431,3.13167,3193.2,3192.6,3.13216]
[1737626078771,3.13186,3193.0,3192.4,0.7758]
[1737626079113,3.13186,3193.0,3192.4,3.90822]
[1737626079310,3.13175,3193.1,3192.5,3.13231]
[1737626079629,3.13149,3193.4,3192.6,3.94733]
[1737626080035,3.13173,3193.2,3192.6,3.94733]
[1737626080264,3.13176,3193.1,3192.6,0.8151]
[1737626080958,3.13173,3193.2,3192.6,0.8151]
[1737626081161,3.13173,3193.2,3192.6,3.94732]
[1737626081453,3.13147,3193.4,3192.6,3.94732]
[1737626081454,3.13147,3193.4,3192.7,3.13213]
[1737626081840,3.13147,3193.4,3192.8,3.13204]
[1737626082211,3.13155,3193.3,3192.8,3.13204]
[1737626082417,3.88929,3193.6,3192.8,3.13204]
[1737626082612,3.13137,3193.5,3192.9,3.13193]
[1737626082843,3.13147,3193.4,3192.9,3.13193]
[1737626083509,3.520219,3193.6,3193.1,0.75]
[1737626083763,3.13129,3193.6,3193.1,0.75]
[1737626084320,3.13137,3193.5,3193.1,0.75]
[1737626085828,3.13124,3193.7,3193.1,0.75]
[1737626086031,3.74935186,3193.8,3193.1,0.75]
[1737626086032,3.13128,3193.6,3193.1,0.75]
[1737626086553,3.13137,3193.5,3193.1,0.75]
[1737626088960,3.13141,3193.5,3193.1,0.75]
[1737626089455,3.13145,3193.4,3193.1,0.75]
[1737626091368,3.13128,3193.6,3193.1,0.75]
[1737626091555,3.13141,3193.5,3193.1,0.75]
[1737626092527,3.13167,3193.2,3192.6,3.89808]
[1737626093184,3.13167,3193.2,3192.6,0.7659]
[1737626093469,3.13214,3192.7,3192.6,0.7659]
[1737626093681,3.13214,3192.7,3192.3,0.8018]
[1737626093828,3.13228,3192.6,3192.3,0.8018]
[1737626095331,3.13263,3192.2,3192.1,0.21969965]
[1737626096225,0.798,3192.2,3191.8,0.1651748]
[1737626096471,3.13293,3191.9,3191.8,0.1651748]
[1737626096669,3.7595,3191.9,3191.8,0.1651748]
[1737626097829,7.5702,3191.9,3191.8,0.1651748]
[1737626098896,4.5702,3191.9,3191.8,0.1651748]
[1737626099285,5.20622999,3191.9,3191.8,0.1651748]
[1737626100794,3.13277,3192.1,3191.8,0.1651748]
[1737626100795,6.26559,3192.1,3191.8,0.1651748]
[1737626101097,0.6380358,3192.2,3191.8,0.1651748]
[1737626101304,0.7715,3192.5,3191.8,0.1651748]
[1737626101497,3.13218,3192.7,3192.0,0.7693]
[1737626101801,3.13215,3192.7,3192.1,3.13265]
[1737626102098,3.13215,3192.7,3192.1,0.13733492]
[1737626102099,3.13231,3192.6,3192.1,0.13733492]
[1737626102394,3.13239,3192.5,3192.1,0.13733492]